fUST/lending_fUST_20250220
["ID","MTS","AMOUNT","RATE_DAILY","PERIOD"]
[353765063,1740019838537,-500.0,0.00014191,2]
[353765064,1740019838547,-660.45,0.00014191,2]
[353765065,1740019838558,-500.0,0.00014191,2]
[353765066,1740019838572,-1153.03,0.00014191,2]
[353765067,1740019838581,-685.45,0.00014191,2]
[353765068,1740019838590,-1095.37,0.00014191,2]
[353765069,1740019838600,-4369.04,0.00014191,2]
[353765070,1740019838609,-500.0,0.00014191,2]
[353765071,1740019838619,-500.0,0.00014191,2]
[353765072,1740019838629,-500.0,0.00014191,2]
[353765073,1740019838638,-156.7748961,0.00014191,2]
[353765074,1740019838649,-1952.03,0.00014191,2]
[353765075,1740019838660,-14853.52,0.00014191,2]
[353765076,1740019838670,-2012.65,0.00014191,2]
[353765077,1740019838680,-500.0,0.00014191,2]
[353765078,1740019838689,-500.0,0.00014191,2]
[353765079,1740019838699,-3118.39,0.00014191,2]
[353765080,1740019838709,-944.01,0.00014191,2]
[353765081,1740019838718,-151.0,0.000142,2]
[353765082,1740019838728,-500.0,0.00014272,2]
[353765083,1740019838738,-500.0,0.00014272,2]
[353765084,1740019838748,-500.0,0.00014272,2]
[353765085,1740019838758,-500.0,0.00014272,2]
[353765086,1740019838769,-500.0,0.00014272,2]
[353765087,1740019838779,-500.0,0.00014272,2]
[353765088,1740019838789,-193.44,0.00014272,2]
[353765089,1740019838799,-500.0,0.00014273,2]
[353765090,1740019838812,-500.0,0.00014273,2]
[353765091,1740019838822,-500.0,0.00014273,2]
[353765092,1740019838835,-500.0,0.00014273,2]
[353765093,1740019838846,-674.46,0.00014273,2]
[353765094,1740019838856,-500.0,0.00014273,2]
[353765095,1740019838867,-1069.29,0.00014273,2]
[353765096,1740019838878,-1739.58,0.00014273,2]
[353765097,1740019838887,-500.0,0.00014273,2]
[353765098,1740019838898,-1366.17,0.00014273,2]
[353765099,1740019838908,-500.0,0.00014273,2]
[353765100,1740019838918,-557.51,0.00014273,2]
[353765101,1740019838928,-500.0,0.00014273,2]
[353765102,1740019838938,-641.95838636,0.00014273,2]
[353765103,1740019838948,-500.0,0.00014273,2]
[353765104,1740019838958,-660.45,0.00014273,2]
[353765105,1740019838969,-500.0,0.00014273,2]
[353765106,1740019838979,-1153.03,0.00014273,2]
[353765107,1740019838989,-685.45,0.00014273,2]
[353765108,1740019838999,-1095.37,0.00014273,2]
[353765109,1740019839009,-4369.04,0.00014273,2]
[353765110,1740019839019,-500.0,0.00014273,2]
[353765111,1740019839030,-215.57569549,0.00014273,2]
[353765112,1740019839040,-500.0,0.00014273,2]
[353765113,1740019839050,-1952.03,0.00014273,2]
[353765114,1740019839061,-14853.52,0.00014273,2]
[353765115,1740019839071,-2012.65,0.00014273,2]
[353765116,1740019839080,-500.0,0.00014273,2]
[353765117,1740019839089,-500.0,0.00014273,2]
[353765118,1740019839100,-3118.39,0.00014273,2]
[353765119,1740019839109,-944.01,0.00014273,2]
[353765120,1740019839119,-151.0,0.000143,2]
[353765121,1740019839129,-151.0,0.000143,2]
[353765122,1740019839139,-151.0,0.000143,2]
[353765123,1740019839148,-500.0,0.00014355,2]
[353765124,1740019839159,-500.0,0.00014356,2]
[353765125,1740019839169,-500.0,0.00014356,2]
[353765126,1740019839179,-500.0,0.00014356,2]
[353765127,1740019839189,-500.0,0.00014356,2]
[353765128,1740019839199,-674.46,0.00014356,2]
[353765129,1740019839209,-227.15,0.00014356,2]
[353765130,1740019839219,-1069.29,0.00014356,2]
[353765131,1740019839228,-1739.58,0.00014356,2]
[353765132,1740019839238,-500.0,0.00014356,2]
[353765133,1740019839248,-1366.17,0.00014356,2]
[353765134,1740019839258,-500.0,0.00014356,2]
[353765135,1740019839267,-557.51,0.00014356,2]
[353765136,1740019839276,-464.13533022,0.00014356,2]
[353765137,1740019839286,-500.0,0.00014356,2]
[353765138,1740019839295,-660.45,0.00014356,2]
[353765139,1740019839306,-1153.03,0.00014356,2]
[353765140,1740019839316,-685.45,0.00014356,2]
[353765141,1740019839326,-1095.37,0.00014356,2]
[353765142,1740019839336,-4369.04,0.00014356,2]
[353765143,1740019839346,-500.0,0.00014356,2]
[353765144,1740019839355,-500.0,0.00014356,2]
[353765145,1740019839365,-1952.03,0.00014356,2]
[353765146,1740019839374,-14853.52,0.00014356,2]
[353765147,1740019839383,-2012.65,0.00014356,2]
[353765148,1740019839392,-500.0,0.00014356,2]
[353765149,1740019839402,-3118.39,0.00014356,2]
[353765150,1740019839412,-944.01,0.00014356,2]
[353765151,1740019839421,-500.0,0.00014397,2]
[353765152,1740019839430,-500.0,0.00014397,2]
[353765153,1740019839440,-307.19638529,0.00014397,2]
[353765154,1740019839449,-153.0,0.00014397,2]
[353765155,1740019839459,-153.0,0.00014397,2]
[353765156,1740019839468,-153.0,0.00014397,2]
[353765157,1740019839478,-153.0,0.00014397,2]
[353765158,1740019839489,-153.0,0.00014397,2]
[353765159,1740019839498,-153.0,0.00014397,2]
[353765160,1740019839508,-153.0,0.00014397,2]
[353765161,1740019839518,-153.0,0.00014397,2]
[353765162,1740019839527,-153.0,0.00014397,2]
[353765163,1740019839537,-153.0,0.00014397,2]
[353765164,1740019839546,-153.0,0.00014397,2]
[353765165,1740019839555,-153.0,0.00014397,2]
[353765166,1740019839567,-153.0,0.00014397,2]
[353765167,1740019839580,-153.0,0.00014397,2]
[353765168,1740019839589,-153.0,0.00014397,2]
[353765169,1740019839599,-153.0,0.00014397,2]
[353765170,1740019839608,-153.0,0.00014397,2]
[353765171,1740019839618,-153.0,0.00014397,2]
[353765172,1740019839628,-153.0,0.00014397,2]
[353765173,1740019839637,-153.0,0.00014397,2]
[353765174,1740019839648,-153.0,0.00014397,2]
[353765175,1740019839659,-153.0,0.00014397,2]
[353765176,1740019839669,-153.0,0.00014397,2]
[353765177,1740019839679,-153.0,0.00014397,2]
[353765178,1740019839689,-153.0,0.00014397,2]
[353765179,1740019839698,-153.0,0.00014397,2]
[353765180,1740019839708,-153.0,0.00014397,2]
[353765181,1740019839718,-153.0,0.00014397,2]
[353765182,1740019839728,-153.0,0.00014397,2]
[353765183,1740019839737,-153.0,0.00014397,2]
[353765184,1740019839747,-153.0,0.00014397,2]
[353765185,1740019839757,-153.0,0.00014397,2]
[353765186,1740019839767,-153.0,0.00014397,2]
[353765187,1740019839777,-153.0,0.00014397,2]
[353765188,1740019839787,-153.0,0.00014397,2]
[353765189,1740019839798,-153.0,0.00014397,2]
[353765190,1740019839810,-153.0,0.00014397,2]
[353765191,1740019839819,-153.0,0.00014397,2]
[353765192,1740019839838,-153.0,0.00014397,2]
[353765193,1740019839849,-153.0,0.00014397,2]
[353765194,1740019839860,-153.0,0.00014397,2]
[353765195,1740019839869,-153.0,0.00014397,2]
[353765196,1740019839878,-153.0,0.00014397,2]
[353765197,1740019839888,-153.0,0.00014397,2]
[353765198,1740019839898,-153.0,0.00014397,2]
[353765199,1740019839908,-153.0,0.00014397,2]
[353765200,1740019839917,-153.0,0.00014397,2]
[353765201,1740019839926,-153.0,0.00014397,2]
[353765202,1740019839936,-153.0,0.00014397,2]
[353765203,1740019839946,-153.0,0.00014397,2]
[353765205,1740019839956,-153.0,0.00014397,2]
[353765206,1740019839966,-153.0,0.00014397,2]
[353765207,1740019839976,-153.0,0.00014397,2]
[353765208,1740019839987,-153.0,0.00014397,2]
[353765209,1740019839997,-153.0,0.00014397,2]
[353765210,1740019840009,-153.0,0.00014397,2]
[353765211,1740019840020,-153.0,0.00014397,2]
[353765212,1740019840032,-153.0,0.00014397,2]
[353765213,1740019840043,-153.0,0.00014397,2]
[353765214,1740019840053,-153.0,0.00014397,2]
[353765216,1740019840065,-153.0,0.00014397,2]
[353765217,1740019840076,-153.0,0.00014397,2]
[353765218,1740019840087,-153.0,0.00014397,2]
[353765219,1740019840097,-153.0,0.00014397,2]
[353765220,1740019840108,-153.0,0.00014397,2]
[353765221,1740019840118,-153.0,0.00014397,2]
[353765222,1740019840129,-153.0,0.00014397,2]
[353765223,1740019840139,-153.0,0.00014397,2]
[353765224,1740019840149,-153.0,0.00014397,2]
[353765225,1740019840159,-153.0,0.00014397,2]
[353765226,1740019840169,-153.0,0.00014397,2]
[353765227,1740019840180,-153.0,0.00014397,2]
[353765228,1740019840190,-153.0,0.00014397,2]
[353765229,1740019840199,-153.0,0.00014397,2]
[353765230,1740019840209,-153.0,0.00014397,2]
[353765231,1740019840219,-153.0,0.00014397,2]
[353765232,1740019840228,-153.0,0.00014397,2]
[353765233,1740019840238,-153.0,0.00014397,2]
[353765234,1740019840247,-153.0,0.00014397,2]
[353765235,1740019840257,-153.0,0.00014397,2]
[353765236,1740019840267,-153.0,0.00014397,2]
[353765237,1740019840277,-153.0,0.00014397,2]
[353765238,1740019840287,-153.0,0.00014397,2]
[353765239,1740019840296,-153.0,0.00014397,2]
[353765240,1740019840308,-153.0,0.00014397,2]
[353765241,1740019840320,-153.0,0.00014397,2]
[353765242,1740019840330,-153.0,0.00014397,2]
[353765243,1740019840340,-153.0,0.00014397,2]
[353765244,1740019840351,-153.0,0.00014397,2]
[353765245,1740019840361,-153.0,0.00014397,2]
[353765246,1740019840371,-153.0,0.00014397,2]
[353765247,1740019840382,-153.0,0.00014397,2]
[353765248,1740019840392,-153.0,0.00014397,2]
[353765249,1740019840402,-153.0,0.00014397,2]
[353765250,1740019840412,-153.0,0.00014397,2]
[353765251,1740019840594,-153.0,0.00014397,2]
[353765252,1740019840607,-153.0,0.00014397,2]
[353765253,1740019840621,-153.0,0.00014397,2]
[353765254,1740019840632,-151.0,0.000144,2]
[353765255,1740019840644,-151.0,0.000144,2]
[353765256,1740019840655,-151.0,0.000144,2]
[353765257,1740019840665,-151.0,0.000144,2]
[353765259,1740019840675,-310.04836781,0.000144,2]
[353765260,1740019840686,-310.04836781,0.000144,2]
[353765262,1740019840696,-310.04836781,0.000144,2]
[353765263,1740019840707,-310.04836781,0.000144,2]
[353765264,1740019840717,-310.04836781,0.000144,2]
[353765265,1740019840729,-310.04836781,0.000144,2]
[353765266,1740019840739,-310.04836781,0.000144,2]
[353765267,1740019840750,-310.04836781,0.000144,2]
[353765268,1740019840761,-310.04836781,0.000144,2]
[353765269,1740019840771,-310.04836781,0.000144,2]
[353765270,1740019840782,-310.04836781,0.000144,2]
[353765271,1740019840792,-310.04836781,0.000144,2]
[353765272,1740019840802,-310.04836781,0.000144,2]
[353765273,1740019840815,-310.04836781,0.000144,2]
[353765274,1740019840825,-4993.72022606,0.000144,2]
[353765275,1740019840835,-310.04836781,0.000144,2]
[353765276,1740019840845,-310.04836781,0.000144,2]
[353765277,1740019840855,-310.04836781,0.000144,2]
[353765278,1740019840865,-310.04836781,0.000144,2]
[353765279,1740019840875,-310.04836781,0.000144,2]
[353765280,1740019840884,-310.04,0.000144,2]
[353765281,1740019840893,-723.44619155,0.000144,2]
[353765282,1740019840904,-723.44619155,0.000144,2]
[353765283,1740019840913,-723.44619155,0.000144,2]
[353765284,1740019840922,-723.44619155,0.000144,2]
[353765285,1740019840931,-723.44619155,0.000144,2]
[353765286,1740019840940,-723.44619155,0.000144,2]
[353765287,1740019840949,-723.44619155,0.000144,2]
[353765288,1740019840959,-723.44619155,0.000144,2]
[353765289,1740019840969,-723.44619155,0.000144,2]
[353765290,1740019840980,-723.44619155,0.000144,2]
[353765291,1740019840991,-723.44619155,0.000144,2]
[353765292,1740019841001,-723.44619155,0.000144,2]
[353765293,1740019841011,-723.44619155,0.000144,2]
[353765294,1740019841021,-723.44619155,0.000144,2]
[353765295,1740019841031,-723.44619155,0.000144,2]
[353765296,1740019841040,-723.44619155,0.000144,2]
[353765297,1740019841050,-723.44619155,0.000144,2]
[353765298,1740019841062,-723.44619155,0.000144,2]
[353765299,1740019841072,-723.44619155,0.000144,2]
[353765300,1740019841082,-723.44,0.000144,2]
[353765301,1740019841092,-183.89959225,0.000144,2]
[353765302,1740019841102,-183.89,0.000144,2]
[353765303,1740019841112,-171.63961944,0.000144,2]
[353765304,1740019841122,-171.63961944,0.000144,2]
[353765305,1740019841132,-171.63961944,0.000144,2]
[353765306,1740019841142,-171.63961944,0.000144,2]
[353765307,1740019841152,-171.63,0.000144,2]
[353765308,1740019841162,-153.0,0.00014422,2]
[353765309,1740019841172,-153.0,0.00014422,2]
[353765310,1740019841181,-153.0,0.00014422,2]
[353765311,1740019841191,-153.0,0.00014422,2]
[353765312,1740019841200,-153.0,0.00014422,2]
[353765313,1740019841209,-178.0,0.00014422,2]
[353765314,1740019841219,-178.0,0.00014422,2]
[353765315,1740019841228,-178.0,0.00014422,2]
[353765316,1740019841237,-178.0,0.00014422,2]
[353765317,1740019841246,-178.0,0.00014422,2]
[353765318,1740019841255,-178.0,0.00014422,2]
[353765319,1740019841264,-178.0,0.00014422,2]
[353765320,1740019841273,-178.0,0.00014422,2]
[353765321,1740019841282,-178.0,0.00014422,2]
[353765322,1740019841291,-178.0,0.00014422,2]
[353765323,1740019841299,-178.0,0.00014422,2]
[353765324,1740019841311,-178.0,0.00014422,2]
[353765325,1740019841320,-178.0,0.00014422,2]
[353765326,1740019841330,-178.0,0.00014422,2]
[353765327,1740019841340,-178.0,0.00014422,2]
[353765328,1740019841349,-178.0,0.00014422,2]
[353765329,1740019841359,-178.0,0.00014422,2]
[353765330,1740019841369,-178.0,0.00014422,2]
[353765331,1740019841379,-178.0,0.00014422,2]
[353765332,1740019841387,-178.0,0.00014422,2]
[353765333,1740019841396,-178.0,0.00014422,2]
[353765334,1740019841405,-178.0,0.00014422,2]
[353765335,1740019841414,-178.0,0.00014422,2]
[353765336,1740019841423,-178.0,0.00014422,2]
[353765337,1740019841432,-264.0,0.00014422,2]
[353765338,1740019841443,-264.0,0.00014422,2]
[353765339,1740019841452,-264.0,0.00014422,2]
[353765340,1740019841462,-264.0,0.00014422,2]
[353765341,1740019841472,-264.0,0.00014422,2]
[353765342,1740019841482,-264.0,0.00014422,2]
[353765343,1740019841491,-264.0,0.00014422,2]
[353765344,1740019841501,-264.0,0.00014422,2]
[353765345,1740019841511,-264.0,0.00014422,2]
[353765346,1740019841520,-264.0,0.00014422,2]
[353765347,1740019841530,-264.0,0.00014422,2]
[353765348,1740019841539,-264.0,0.00014422,2]
[353765349,1740019841549,-264.0,0.00014422,2]
[353765350,1740019841560,-264.0,0.00014422,2]
[353765351,1740019841570,-264.0,0.00014422,2]
[353765352,1740019841581,-264.0,0.00014422,2]
[353765353,1740019841589,-264.0,0.00014422,2]
[353765354,1740019841599,-264.0,0.00014422,2]
[353765355,1740019841608,-264.0,0.00014422,2]
[353765356,1740019841619,-264.0,0.00014422,2]
[353765357,1740019841629,-264.0,0.00014422,2]
[353765358,1740019841639,-264.0,0.00014422,2]
[353765359,1740019841650,-264.0,0.00014422,2]
[353765360,1740019841660,-264.0,0.00014422,2]
[353765361,1740019841670,-264.0,0.00014422,2]
[353765362,1740019841680,-264.0,0.00014422,2]
[353765363,1740019841690,-264.0,0.00014422,2]
[353765364,1740019841701,-264.0,0.00014422,2]
[353765365,1740019841712,-264.0,0.00014422,2]
[353765366,1740019841722,-264.0,0.00014422,2]
[353765367,1740019841732,-264.0,0.00014422,2]
[353765368,1740019841741,-264.0,0.00014422,2]
[353765369,1740019841751,-264.0,0.00014422,2]
[353765370,1740019841760,-264.0,0.00014422,2]
[353765371,1740019841770,-264.0,0.00014422,2]
[353765372,1740019841779,-264.0,0.00014422,2]
[353765373,1740019841790,-264.0,0.00014422,2]
[353765374,1740019841799,-264.0,0.00014422,2]
[353765375,1740019841811,-264.0,0.00014422,2]
[353765376,1740019841821,-264.0,0.00014422,2]
[353765377,1740019841831,-264.0,0.00014422,2]
[353765378,1740019841840,-264.0,0.00014422,2]
[353765379,1740019841850,-264.0,0.00014422,2]
[353765380,1740019841859,-264.0,0.00014422,2]
[353765381,1740019841868,-264.0,0.00014422,2]
[353765382,1740019841878,-264.0,0.00014422,2]
[353765383,1740019841888,-264.0,0.00014422,2]
[353765384,1740019841897,-264.0,0.00014422,2]
[353765385,1740019841907,-264.0,0.00014422,2]
[353765386,1740019841916,-264.0,0.00014422,2]
[353765387,1740019841926,-264.0,0.00014422,2]
[353765388,1740019841935,-264.0,0.00014422,2]
[353765389,1740019841945,-264.0,0.00014422,2]
[353765390,1740019841954,-264.0,0.00014422,2]
[353765391,1740019841963,-264.0,0.00014422,2]
[353765392,1740019841973,-264.0,0.00014422,2]
[353765393,1740019841989,-264.0,0.00014422,2]
[353765394,1740019842003,-264.0,0.00014422,2]
[353765395,1740019842013,-264.0,0.00014422,2]
[353765396,1740019842023,-264.0,0.00014422,2]
[353765397,1740019842033,-264.0,0.00014422,2]
[353765398,1740019842043,-264.0,0.00014422,2]
[353765399,1740019842053,-264.0,0.00014422,2]
[353765400,1740019842065,-264.0,0.00014422,2]
[353765401,1740019842074,-264.0,0.00014422,2]
[353765402,1740019842084,-264.0,0.00014422,2]
[353765403,1740019842094,-264.0,0.00014422,2]
[353765404,1740019842103,-264.0,0.00014422,2]
[353765405,1740019842113,-264.0,0.00014422,2]
[353765406,1740019842123,-264.0,0.00014422,2]
[353765407,1740019842132,-264.0,0.00014422,2]
[353765408,1740019842142,-264.0,0.00014422,2]
[353765409,1740019842151,-264.0,0.00014422,2]
[353765410,1740019842161,-475.96401748,0.00014432,2]
[353765411,1740019842170,-500.0,0.00014438,2]
[353765412,1740019842180,-500.0,0.00014438,2]
[353765413,1740019842190,-499.44171601,0.00014438,2]
[353765414,1740019842200,-500.0,0.00014438,2]
[353765415,1740019842212,-674.46,0.00014438,2]
[353765416,1740019842222,-1069.29,0.00014438,2]
[353765417,1740019842232,-1739.58,0.00014438,2]
[353765418,1740019842242,-500.0,0.00014438,2]
[353765419,1740019842252,-1366.17,0.00014438,2]
[353765420,1740019842262,-500.0,0.00014438,2]
[353765421,1740019842272,-557.51,0.00014438,2]
[353765422,1740019842283,-500.0,0.00014438,2]
[353765423,1740019842292,-660.45,0.00014438,2]
[353765424,1740019842302,-1153.03,0.00014438,2]
[353765425,1740019842315,-685.45,0.00014438,2]
[353765426,1740019842324,-1095.37,0.00014438,2]
[353765427,1740019842334,-4369.04,0.00014438,2]
[353765428,1740019842344,-500.0,0.00014438,2]
[353765429,1740019842354,-500.0,0.00014438,2]
[353765430,1740019842371,-1952.03,0.00014438,2]
[353765431,1740019842381,-14853.52,0.00014438,2]
[353765432,1740019842390,-2012.65,0.00014438,2]
[353765433,1740019842399,-500.0,0.00014438,2]
[353765434,1740019842407,-3118.39,0.00014438,2]
[353765435,1740019842417,-944.01,0.00014438,2]
[353765436,1740019842425,-700.0,0.00014438,2]
[353765437,1740019842434,-500.0,0.00014473,2]
[353765438,1740019842443,-150.04169451,0.00014473,2]
[353765439,1740019842451,-500.0,0.00014473,2]
[353765440,1740019842460,-500.0,0.00014473,2]
[353765441,1740019842470,-500.0,0.00014473,2]
[353765442,1740019842479,-160.37406782,0.00014498,2]
[353765443,1740019842489,-259088.55223218,0.00014499,5]
[353765444,1740019842498,-160.0,0.00014499,2]
[353765445,1740019842507,-160.0,0.00014499,2]
[353765446,1740019842516,-1478723.74729936,0.00014499,5]
[353765462,1740019843211,-10485.24502856,0.00014499,5]
[353765463,1740019843222,-89268.54526217,0.00014499,5]
[353765464,1740019843233,-2350.00000001,0.00014499,5]
[353765466,1740019843339,-372.00234008,0.00013698,2]
[353765467,1740019843349,-641.57,0.00013698,2]
[353765468,1740019843359,-510.12138385,0.00013698,2]
[353765469,1740019843368,-641.57,0.0001378,2]
[353765470,1740019843378,-641.57,0.00013863,2]
[353765471,1740019843387,-641.57,0.00013945,2]
[353765472,1740019843397,-641.57,0.00014027,2]
[353765473,1740019843408,-641.57,0.00014109,2]
[353765474,1740019843417,-641.57,0.00014191,2]
[353765475,1740019843426,-2497.94522948,0.000144,2]
[353765476,1740019843436,-28610.92134035,0.00014499,5]
[353765477,1740019843447,-901.60914159,0.00014499,5]
[353765478,1740019843456,-1042663.59801987,0.00014499,5]
[353765479,1740019843467,-1893.92624456,0.00014499,5]
[353765483,1740019846198,-500.0,0.00013698,2]
[353765484,1740019846208,-128.62214902,0.00014273,2]
[353765498,1740020666232,151.0,0.00018,120]
[353765500,1740020862775,183.397322,9.041e-05,2]
[353765547,1740021032436,-455.89633136,0.0001278,2]
[353765553,1740021032490,-2432.52187854,0.0001278,2]
[353765555,1740021032501,-292.4615666,0.00012904,2]
[353765557,1740021032511,-500.0,0.00013697,2]
[353765559,1740021032522,-500.0,0.00013697,2]
[353765561,1740021032532,-500.0,0.00013697,2]
[353765562,1740021032542,-500.0,0.00013697,2]
[353765564,1740021032553,-500.0,0.00013697,2]
[353765566,1740021032564,-500.0,0.00013697,2]
[353765568,1740021032574,-500.0,0.00013697,2]
[353765569,1740021032584,-500.0,0.00013697,2]
[353765570,1740021032595,-500.0,0.00013697,2]
[353765571,1740021032605,-500.0,0.00013697,2]
[353765572,1740021032614,-500.0,0.00013697,2]
[353765573,1740021032623,-500.0,0.00013697,2]
[353765574,1740021032633,-500.0,0.00013697,2]
[353765575,1740021032643,-500.0,0.00013697,2]
[353765576,1740021032653,-500.0,0.00013697,2]
[353765577,1740021032662,-500.0,0.00013697,2]
[353765578,1740021032672,-582.62905533,0.00013697,2]
[353765579,1740021032682,-500.0,0.00013697,2]
[353765580,1740021032691,-388.79996117,0.00013697,2]
[353765581,1740021032702,-500.0,0.00013697,2]
[353765582,1740021032711,-1137.39037672,0.00013697,2]
[353765583,1740021032724,-336.14362328,0.00013697,2]
[353765584,1740021032733,-172.077,0.00013697,2]
[353765585,1740021032743,-244.77295748,0.00013698,2]
[353765586,1740021032755,-257.4688125,0.00013698,2]
[353765587,1740021032764,-500.0,0.00013698,2]
[353765588,1740021032774,-500.0,0.00013698,2]
[353765589,1740021032783,-507.81304366,0.00013698,2]
[353765590,1740021032793,-500.0,0.00013698,2]
[353765591,1740021032803,-164.84569804,0.00013698,2]
[353765592,1740021032815,-335.15430196,0.00013698,2]
[353765593,1740021032824,-501.03902153,0.00013698,2]
[353765594,1740021032834,-500.0,0.00013698,2]
[353765595,1740021032845,-500.0,0.00013698,2]
[353765596,1740021032855,-500.0,0.00013698,2]
[353765597,1740021032864,-500.0,0.00013698,2]
[353765598,1740021032874,-500.0,0.00013698,2]
[353765599,1740021032883,-500.0,0.00013698,2]
[353765600,1740021032893,-503.01551582,0.00013698,2]
[353765601,1740021032903,-500.0,0.00013698,2]
[353765602,1740021032912,-500.0,0.00013698,2]
[353765603,1740021032922,-500.0,0.00013698,2]
[353765604,1740021032931,-500.0,0.00013698,2]
[353765605,1740021032941,-500.0,0.00013698,2]
[353765606,1740021032952,-505.2447664,0.00013698,2]
[353765607,1740021032964,-507.01578492,0.00013698,2]
[353765608,1740021032974,-500.0,0.00013698,2]
[353765609,1740021032984,-500.0,0.00013698,2]
[353765610,1740021032994,-504.08652516,0.00013698,2]
[353765611,1740021033005,-505.75159697,0.00013698,2]
[353765612,1740021033016,-500.0,0.00013698,2]
[353765613,1740021033026,-504.39297638,0.00013698,2]
[353765614,1740021033037,-500.0,0.00013698,2]
[353765615,1740021033048,-500.0,0.00013698,2]
[353765616,1740021033058,-507.31230826,0.00013698,2]
[353765617,1740021033068,-507.62960379,0.00013698,2]
[353765618,1740021033078,-506.23585605,0.00013698,2]
[353765619,1740021033090,-510.13484862,0.00013698,2]
[353765620,1740021033101,-500.0,0.00013698,2]
[353765621,1740021033111,-309.70583106,0.00013698,2]
[353765622,1740021033122,-505.62053682,0.00013698,2]
[353765623,1740021033132,-500.0,0.00013698,2]
[353765624,1740021033143,-500.0,0.00013698,2]
[353765625,1740021033154,-504.59412704,0.00013698,2]
[353765626,1740021033165,-505.1561319,0.00013698,2]
[353765627,1740021033178,-507.41425606,0.00013698,2]
[353765628,1740021033198,-397.71059471,0.00013698,2]
[353765629,1740021033213,-102.28940529,0.00013698,2]
[353765630,1740021033224,-500.0,0.00013698,2]
[353765631,1740021033235,-507.41316109,0.00013698,2]
[353765632,1740021033247,-506.18468445,0.00013698,2]
[353765633,1740021033257,-506.3496682,0.00013698,2]
[353765634,1740021033269,-500.0,0.00013698,2]
[353765635,1740021033279,-502.10784445,0.00013698,2]
[353765636,1740021033289,-189.17586508,0.00013698,2]
[353765637,1740021033303,-310.82413492,0.00013698,2]
[353765638,1740021033319,-118.31586508,0.00013698,2]
[353765639,1740021033395,-381.68413492,0.00013698,2]
[353765640,1740021033404,-111.96586508,0.00013698,2]
[353765706,1740021038246,-394.73797705,0.00013698,2]
[353765707,1740021038256,-501.82224187,0.00013698,2]
[353765708,1740021038265,-500.0,0.00013698,2]
[353765709,1740021038275,-559.59,0.00013698,2]
[353765710,1740021038284,-500.0,0.00013698,2]
[353765711,1740021038295,-813.83,0.00013698,2]
[353765712,1740021038308,-1328.47,0.00013698,2]
[353765713,1740021038318,-500.0,0.00013698,2]
[353765714,1740021038328,-500.0,0.00013698,2]
[353765715,1740021038337,-500.0,0.00013698,2]
[353765716,1740021038346,-880.27,0.00013698,2]
[353765717,1740021038356,-500.0,0.00013698,2]
[353765718,1740021038366,-500.0,0.00013698,2]
[353765719,1740021038376,-500.0,0.00013698,2]
[353765720,1740021038386,-500.0,0.00013698,2]
[353765721,1740021038395,-496.71,0.00013698,2]
[353765722,1740021038406,-759.59,0.00013698,2]